bitfinex/quotes_ETHUSD_20260225
["timestamp","ask_amount","ask_price","bid_price","bid_amount"]
[1772032062462,6.09060264,1994.9,1993.8,1.25388689]
[1772032062665,5.0125414,1995.0,1993.8,1.25388689]
[1772032062856,7.1185414,1995.0,1993.8,1.25388689]
[1772032063253,5.0125414,1995.0,1993.8,1.25388689]
[1772032063455,5.0125414,1995.0,1993.8,7.59016339]
[1772032063456,1.25313283,1995.0,1993.8,7.59016339]
[1772032063684,1.25300721,1995.2,1993.9,24.8519865]
[1772032063874,1.25300721,1995.2,1994.1,6.3362765]
[1772032064590,1.25300721,1995.2,1994.0,2.029]
[1772032065167,1.25300721,1995.2,1994.0,8.3652765]
[1772032065792,3.35998243,1995.3,1994.1,7.58997491]
[1772032065990,3.35998243,1995.3,1994.2,6.3362765]
[1772032066281,3.35998243,1995.3,1994.3,6.3362765]
[1772032066672,0.002,1995.4,1994.5,6.3362765]
[1772032066871,0.002,1995.4,1994.6,2.025]
[1772032067259,0.002,1995.4,1994.6,8.3612765]
[1772032067260,1.25488674,1995.4,1994.6,8.3612765]
[1772032067688,0.002,1995.4,1994.7,1.2533213]
[1772032067857,0.002,1995.4,1994.6,3.27833534]
[1772032068988,6.09060264,1995.2,1993.8,6.3362765]
[1772032069193,2.094,1995.1,1993.9,5.01504928]
[1772032069495,6.09060264,1995.2,1993.9,5.01504928]
[1772032069692,6.09060264,1994.8,1993.4,5.01641855]
[1772032069907,6.09060264,1994.8,1993.3,5.01672204]
[1772032070058,2.095,1994.7,1993.3,5.01672204]
[1772032070884,2.095,1994.7,1993.4,6.3362765]
[1772032071880,7.34398677,1994.6,1993.1,1.25432742]
[1772032072191,7.34398677,1994.6,1993.0,2.022]
[1772032072496,12.560961,1994.2,1992.7,1.25454607]
[1772032072697,6.09060264,1994.1,1992.7,1.25454607]
[1772032073004,2.09,1994.2,1992.8,15.7462445]
[1772032073164,2.09,1994.2,1992.9,2.938141]
[1772032073483,7.34598677,1994.6,1993.2,6.3362765]
[1772032073696,1.25538413,1994.6,1993.2,6.3362765]
[1772032073896,0.002,1994.6,1993.4,6.3362765]
[1772032074394,0.002,1994.6,1993.6,6.3362765]
[1772032074603,0.002,1994.6,1993.9,32.6469975]
[1772032074765,0.002,1994.7,1993.3,7.59047807]
[1772032074970,0.002,1994.7,1993.4,2.019]
[1772032075889,0.002,1994.7,1993.5,1.25407574]
[1772032076082,0.002,1994.7,1993.6,13.520175]
[1772032076284,0.002,1994.7,1993.7,27.61486865]
[1772032076470,0.002,1994.7,1993.7,5.85463065]
[1772032077470,0.002,1994.7,1993.8,2.9449]
[1772032077793,0.002,1994.7,1993.9,2.021]
[1772032079295,0.002,1994.7,1993.9,3.27481891]
[1772032079465,0.002,1994.7,1993.9,2.021]
[1772032080069,0.002,1994.7,1993.5,3.27003115]
[1772032080382,0.002,1994.7,1993.5,2.016]
[1772032080696,6.43458981,1994.7,1993.5,2.016]
[1772032080900,6.43258981,1994.5,1993.0,2.014]
[1772032082194,6.43258981,1994.2,1992.6,13.39214217]
[1772032082383,6.43258981,1994.2,1992.6,1.25464217]
[1772032082790,6.43258981,1994.2,1992.7,5.85463065]
[1772032083005,6.43258981,1994.2,1992.9,5.85463065]
[1772032083204,1.25350982,1994.4,1993.0,9.695396]
[1772032083421,1.25350982,1994.4,1993.2,2.854496]
[1772032083620,1.25350982,1994.4,1993.1,5.85463065]
[1772032084190,7.68603678,1994.5,1993.2,1.25426449]
[1772032084519,9.76794132,1994.7,1993.3,5.85463065]
[1772032084720,1.25534161,1994.7,1993.4,29.77208865]
[1772032084896,1.25534161,1994.7,1993.5,6.939685]
[1772032085099,3.52346189,1994.5,1992.8,1.25451625]
[1772032085419,6.43258981,1994.3,1992.8,1.25451625]
[1772032085715,6.43258981,1994.2,1992.8,1.25451625]
[1772032085920,6.43258981,1994.2,1992.6,1.25464217]
[1772032086218,6.43258981,1993.8,1992.5,3.26970014]
[1772032087094,6.43258981,1993.8,1992.8,0.001]
[1772032087418,6.43258981,1993.7,1992.8,0.001]
[1772032088200,1.25394994,1993.7,1992.8,0.001]
[1772032090321,7.68653975,1993.7,1992.8,0.001]
[1772032091724,6.43258981,1993.3,1991.9,1.25607008]
[1772032091924,6.43258981,1993.1,1992.0,1.25602001]
[1772032092089,6.43258981,1993.5,1992.1,20.57656965]
[1772032092419,7.68671765,1993.5,1992.3,1.25483109]
[1772032092588,1.25388704,1993.8,1992.5,5.85463065]
[1772032093385,1.25388704,1993.8,1992.6,17.625375]
[1772032093591,1.25388704,1993.8,1992.7,7.85963065]
[1772032093790,1.25388704,1993.8,1992.7,2.005]
[1772032094214,1.25386979,1993.9,1992.7,2.005]
[1772032094422,1.25386979,1993.9,1992.8,1.25451625]
[1772032094993,3.3257444,1994.1,1992.8,7.1091469]
[1772032095496,6.43258981,1994.4,1992.8,7.1091469]
[1772032095709,7.68614692,1994.4,1993.1,5.85463065]
[1772032096511,7.68614692,1994.4,1992.8,1.2544533]
[1772032096719,7.68614692,1994.4,1992.8,7.10908395]
[1772032097024,7.68614692,1994.4,1993.0,5.85463065]
[1772032097622,7.68614692,1994.4,1993.1,5.85463065]
[1772032097923,7.68614692,1994.4,1993.2,25.905799]
[1772032097924,1.25355711,1994.4,1993.2,25.905799]
[1772032098121,1.25355711,1994.4,1993.4,5.85463065]
[1772032098299,5.01360552,1994.6,1993.4,5.85463065]
[1772032098493,7.68797394,1994.7,1993.5,1.25407574]
[1772032098701,7.68797394,1994.7,1993.4,1.25408901]
[1772032099716,7.68797394,1994.7,1993.3,3.25215286]
[1772032099893,7.68797394,1994.7,1993.3,1.998]
[1772032100096,6.43258981,1994.5,1993.3,1.998]
[1772032100397,6.43258981,1994.3,1993.2,1.25423605]
[1772032100598,1.25363554,1994.2,1992.9,5.85463065]
[1772032100918,1.25363554,1994.2,1993.0,5.85463065]
[1772032101819,1.25360389,1994.3,1993.1,5.85463065]
[1772032102033,0.002,1994.7,1993.5,5.85463065]
[1772032102334,1.25535513,1994.7,1993.7,5.85463065]
[1772032102629,0.002,1994.7,1993.9,5.85463065]
[1772032102828,0.002,1994.9,1994.2,24.05392465]
[1772032103037,0.002,1994.9,1994.4,8.101904]
[1772032103329,0.002,1994.9,1994.3,7.84763065]
[1772032103534,0.002,1995.3,1994.4,5.85463065]
[1772032103732,0.002,1995.3,1994.7,5.85463065]
[1772032104099,0.002,1995.3,1994.8,5.85463065]
[1772032104406,0.002,1995.3,1994.9,7.84963065]
[1772032104744,0.002,1995.3,1994.9,1.995]
[1772032104924,0.002,1995.3,1994.9,3.24819492]
[1772032105819,0.002,1995.4,1994.9,9.54160029]
[1772032106044,0.002,1995.6,1995.0,6.29340537]
[1772032106560,0.002,1996.2,1994.9,3.24819492]
[1772032106561,0.002,1996.2,1995.5,6.29340537]
[1772032106761,0.002,1996.2,1995.5,1.996]
[1772032107624,0.002,1996.2,1995.2,1.2529777]
[1772032108730,0.002,1996.2,1995.2,7.54638307]
[1772032108933,0.002,1996.2,1995.3,11.184661]
[1772032109127,0.002,1996.2,1995.2,1.2529777]
[1772032109771,6.47651407,1996.2,1994.7,1.2533213]
[1772032110046,6.47651407,1996.2,1995.0,1.996]
[1772032110829,1.25244226,1996.1,1995.0,3.24912239]
[1772032112124,7.72695633,1996.1,1995.0,3.24912911]
[1772032112347,6.47451407,1996.0,1994.8,1.25319862]
[1772032113121,1.25256776,1995.9,1994.7,11.17852564]
[1772032113421,11.48478512,1996.0,1994.9,9.84211]
[1772032113422,7.7270265,1996.0,1994.9,9.84211]
[1772032113625,7.7270265,1996.0,1994.7,5.01313662]
[1772032114551,0.002,1996.2,1994.9,6.16538902]
[1772032114751,0.002,1996.2,1995.0,2.233]
[1772032114752,1.25438502,1996.2,1995.0,2.233]
[1772032114931,1.25438502,1996.2,1995.1,1.996]
[1772032115325,0.002,1996.2,1995.2,1.25300721]
[1772032115750,6.47651407,1996.2,1995.2,1.25300721]
[1772032116931,0.002,1995.9,1995.2,1.25300721]
[1772032117132,2.057,1995.9,1994.6,6.16538902]
[1772032117666,0.002,1995.9,1994.8,33.25978702]
[1772032117982,0.002,1995.9,1994.8,6.16538902]
[1772032118147,6.47651407,1995.9,1994.8,2.15943]
[1772032118336,6.47651407,1995.9,1994.7,1.2533213]
[1772032119359,6.47451407,1995.8,1994.8,1.997]
[1772032119750,7.72720736,1995.7,1994.8,1.997]
[1772032120142,8.52851407,1995.6,1994.3,4.01343]
[1772032120338,6.47451407,1995.5,1994.3,2.092696]
[1772032120545,6.47451407,1995.5,1994.4,3.75063]
[1772032120737,6.47451407,1995.5,1994.3,6.16538902]
[1772032121660,7.72739569,1995.4,1994.4,3.2505024]
[1772032121962,7.72739569,1995.4,1994.4,3.25049631]
[1772032122168,1.25288162,1995.4,1994.4,9.41588533]
[1772032123970,6.47451407,1995.6,1994.5,26.97523]
[1772032124196,3.30670763,1995.7,1994.6,6.16538902]
[1772032125467,1.25270763,1995.7,1994.6,6.16538902]
[1772032126044,5.01071706,1995.8,1994.7,1.2533213]
[1772032126257,5.01071706,1995.8,1994.8,1.999]
[1772032126672,6.47451407,1995.6,1994.2,7.41897422]
[1772032127170,6.47451407,1995.6,1994.2,1.2535852]
[1772032127342,8.991041,1995.3,1994.2,1.2535852]
[1772032127543,6.47451407,1995.2,1994.2,1.2535852]
[1772032128075,1.25313283,1995.0,1993.9,5.01529141]
[1772032128584,7.7276469,1995.0,1993.9,5.01529141]
[1772032129347,8.991041,1994.9,1993.9,1.25382416]
[1772032129567,2.055,1994.8,1993.9,1.25382416]
[1772032129771,8.52951407,1994.8,1993.9,1.25382416]
[1772032130282,10.2443623,1994.7,1993.8,3.25388396]
[1772032130487,6.47451407,1994.6,1993.7,3.25490303]
[1772032130777,2.51652693,1994.5,1994.0,0.001]
[1772032130956,8.991041,1994.5,1994.0,0.001]
[1772032131580,8.991041,1994.5,1993.5,1.25407574]
[1772032131581,6.47451407,1994.5,1993.5,1.25407574]
[1772032132048,1.2533213,1994.7,1993.6,2.51652693]
[1772032132444,1.2533213,1994.7,1993.5,7.41946476]
[1772032133294,7.72783537,1994.7,1993.5,7.41946476]
[1772032134988,7.72783537,1994.7,1993.6,2.51652693]
[1772032135471,1.2533213,1994.7,1993.6,8.8011379]
[1772032136778,1.2533213,1994.7,1993.7,1.25394994]
[1772032136967,8.40064784,1994.9,1994.0,2.51652693]
[1772032136968,1.25320129,1994.9,1994.0,2.51652693]
[1772032137474,1.253185,1995.0,1994.0,2.51652693]
[1772032137682,1.25308947,1995.1,1994.2,2.51652693]
[1772032137849,1.25308947,1995.1,1994.3,2.003]
[1772032138876,2.059,1995.1,1994.3,2.003]
[1772032139077,2.059,1995.1,1994.3,3.25655234]
[1772032139382,7.94312091,1995.1,1994.3,2.003]
[1772032139563,8.40064784,1995.0,1994.3,2.003]
[1772032139764,8.40064784,1994.8,1993.9,2.002]
[1772032140087,5.88412091,1994.8,1993.9,2.002]
[1772032140293,2.059,1995.1,1994.1,2.51652693]
[1772032140586,2.059,1995.1,1994.1,8.8011379]
[1772032140750,2.059,1995.1,1994.3,2.51652693]
[1772032140951,1.25294441,1995.3,1994.5,1.25344697]
[1772032141164,1.25294441,1995.3,1994.4,3.25547178]
[1772032141478,7.13706532,1995.3,1994.4,3.25547178]
[1772032141691,2.51652693,1995.2,1994.1,2.001]
[1772032141854,2.51652693,1995.0,1994.1,3.25469841]
[1772032142052,2.058,1995.0,1994.1,3.25469841]
[1772032142276,10.45864784,1995.0,1994.1,3.25469448]
[1772032142491,7.94212091,1995.0,1994.1,3.25469448]
[1772032143576,1.25319564,1994.9,1994.1,3.25469448]
[1772032143897,5.88412091,1994.7,1993.7,3.25391475]
[1772032144085,1.25319564,1994.9,1993.5,1.25403018]
[1772032144086,5.88412091,1994.4,1993.5,1.25403018]
[1772032144463,5.88412091,1994.4,1993.6,0.001]
[1772032144669,5.88412091,1993.7,1993.1,0.001]
[1772032144870,5.88412091,1993.7,1992.6,0.001]
[1772032144871,2.51652693,1993.2,1992.6,0.001]
[1772032145089,2.057,1993.1,1992.6,0.001]
[1772032145297,2.057,1993.1,1992.6,1.2556139]
[1772032145493,5.88412091,1993.6,1992.6,1.2556307]
[1772032145671,3.31107574,1993.5,1992.6,2.51752693]
[1772032146200,3.31107574,1993.5,1992.8,2.51652693]
[1772032146201,2.057,1993.5,1992.8,2.51652693]
[1772032146500,1.25357268,1994.3,1993.2,2.51652693]
[1772032146796,8.40064784,1994.2,1993.0,6.28461097]
[1772032147105,7.94112091,1994.1,1992.9,4.51552693]
[1772032147599,1.25376128,1994.0,1993.2,1.25426449]
[1772032149211,2.057,1994.1,1993.2,1.25426449]
[1772032149388,1.25355667,1994.4,1993.5,2.51652693]
[1772032149773,12.95404147,1994.5,1993.5,1.25407574]
[1772032149774,2.056,1994.5,1993.5,1.25407574]
[1772032150094,3.30945291,1994.5,1993.5,1.25407574]
[1772032150506,5.01311132,1994.8,1993.6,8.8011379]
[1772032150718,9.19437938,1994.9,1993.8,2.51652693]
[1772032150719,7.94112091,1994.9,1993.8,2.51652693]
[1772032150917,3.31023894,1994.9,1993.9,1.998]
[1772032151278,2.057,1994.9,1993.9,8.28261097]
[1772032151497,1.25520113,1994.9,1993.9,8.28261097]
[1772032151716,1.25520113,1994.9,1994.0,3.77028821]
[1772032151717,0.002,1994.9,1994.0,3.77028821]
[1772032152413,0.002,1994.9,1994.1,6.28461097]
[1772032153295,0.002,1994.9,1994.2,2.51652693]
[1772032153516,0.002,1994.9,1994.1,6.28461097]
[1772032153714,0.002,1994.9,1994.2,1.25363554]
[1772032153914,2.51852693,1994.9,1993.9,1.998]
[1772032154617,2.51652693,1994.7,1993.7,3.25194994]
[1772032154785,5.88412091,1994.8,1993.7,3.25194994]
[1772032154987,5.88412091,1994.6,1993.7,1.998]
[1772032155182,7.93712091,1994.5,1993.4,5.01638385]
[1772032155515,10.45364784,1994.5,1993.4,1.25413865]
[1772032155714,10.45364784,1994.5,1993.3,13.29935143]
[1772032155715,1.25357268,1994.3,1993.3,3.25215805]
[1772032155918,2.51652693,1994.1,1993.1,5.01709511]
[1772032156120,2.053,1994.0,1993.0,5.01742973]
[1772032156810,8.40064784,1993.8,1992.6,0.001]
[1772032157120,5.88412091,1993.7,1992.6,1.25559772]
[1772032157288,5.88412091,1993.6,1992.6,1.25559772]
[1772032157488,2.053,1993.5,1992.6,1.25559772]
[1772032157819,1.25413865,1993.4,1992.9,0.001]
[1772032158027,1.25413865,1993.4,1992.6,0.001]
[1772032158228,5.88412091,1993.2,1992.5,0.001]
[1772032158529,5.88412091,1993.2,1992.8,0.001]
[1772032158900,1.25413865,1993.4,1992.8,0.001]
[1772032159209,8.40064784,1993.1,1992.5,0.001]
[1772032159412,2.053,1993.0,1992.5,0.001]
[1772032160017,1.2544533,1992.9,1992.5,0.001]
[1772032162317,3.30742099,1993.0,1992.5,0.001]
[1772032163406,2.053,1993.0,1992.5,0.001]
[1772032163606,2.06,1993.2,1992.5,0.001]
[1772032164255,2.06,1993.7,1992.6,1.25464217]
[1772032164535,4.57652693,1993.7,1992.6,1.25464217]
[1772032164928,2.51652693,1993.3,1992.5,0.001]
[1772032165234,2.51652693,1993.3,1992.5,1.25570045]
[1772032165441,2.06,1993.6,1992.5,1.25570045]
[1772032165654,2.51652693,1993.5,1992.5,1.25570045]
[1772032165943,2.51652693,1993.3,1992.5,0.001]
[1772032166107,2.06,1993.2,1992.5,0.001]
[1772032166308,3.77085435,1993.1,1992.5,0.001]
[1772032168135,3.77085435,1993.1,1991.9,1.25508098]
[1772032168136,2.51652693,1992.7,1991.9,1.25508098]
[1772032168437,3.31764217,1992.6,1991.8,1.25814609]
[1772032168745,6.16755257,1992.9,1991.8,0.003]
[1772032169111,2.063,1993.0,1991.8,5.90208928]
[1772032169835,2.063,1993.0,1991.9,8.72752771]
[1772032170035,2.062,1993.0,1991.9,8.72752771]
[1772032170339,1.2544533,1992.9,1992.1,1.25495708]
[1772032170555,3.31640775,1993.0,1992.1,1.25495708]
[1772032170732,1.2543676,1993.1,1992.1,9.98248479]
[1772032171258,1.2543676,1993.1,1992.1,9.45695786]
[1772032171430,2.51652693,1993.0,1992.1,1.991]
[1772032171616,2.51652693,1992.8,1991.9,1.25503489]
[1772032171938,2.063,1992.9,1991.9,1.25503489]
[1772032172141,2.063,1992.9,1991.8,5.02347093]
[1772032172142,8.8163949,1992.8,1991.8,1.25811283]
[1772032172348,1.25457921,1992.7,1991.8,1.25811283]
[1772032172724,1.25457921,1992.7,1991.9,0.001]
[1772032172922,2.51652693,1992.6,1991.9,0.001]
[1772032173136,2.062,1992.5,1991.9,0.001]
[1772032174962,3.31674305,1992.5,1991.9,0.001]
[1772032176560,6.29986797,1992.4,1991.8,0.004]
[1772032176760,2.51652693,1992.0,1991.1,1.25853731]
[1772032177066,2.51652693,1992.0,1991.1,6.21400078]
[1772032177067,3.31806495,1992.0,1991.1,6.21400078]
[1772032177447,2.51652693,1991.8,1991.1,0.003]
[1772032177844,3.31806495,1992.0,1991.1,0.003]
[1772032178047,2.062,1991.9,1991.1,0.003]
[1772032178666,4.57852693,1991.9,1991.1,0.003]
[1772032178964,1.25498373,1992.1,1991.1,2.51952693]
[1772032179149,1.25498373,1992.1,1991.1,8.73052771]
[1772032180236,1.25470514,1992.5,1991.4,8.72752771]
[1772032180464,1.25470514,1992.5,1991.4,8.19800078]
[1772032181452,1.25470514,1992.5,1991.5,1.25533517]
[1772032181774,3.77123207,1992.5,1991.5,1.25533517]
[1772032181944,2.51652693,1992.3,1991.5,1.25533517]
[1772032182344,2.064,1992.2,1991.5,1.25533517]
[1772032184478,13.15068448,1992.5,1991.5,1.25533517]
[1772032184669,2.063,1992.5,1991.5,7.46633595]
[1772032185455,3.31665101,1992.6,1991.5,7.46633595]
[1772032186677,0.002,1992.9,1992.0,3.53311137]
[1772032186879,0.002,1992.9,1992.1,6.21100078]
[1772032187375,0.002,1992.9,1992.2,10.576209]
[1772032187574,5.0160776,1993.6,1992.1,6.21100078]
[1772032187575,2.062,1993.6,1992.4,6.21100078]
[1772032187778,2.062,1993.6,1992.6,9.74411215]
[1772032187952,2.062,1993.6,1992.5,1.989]
[1772032187953,8.36186797,1993.6,1992.5,1.989]
[1772032188155,3.53311137,1993.5,1992.5,1.989]
[1772032188473,8.36186797,1993.6,1992.5,1.989]
[1772032188648,1.25407574,1993.5,1992.6,1.25464217]
[1772032189479,1.25407574,1993.5,1992.2,6.21100078]
[1772032189480,6.29986797,1993.3,1992.2,6.21100078]
[1772032189776,2.062,1993.2,1992.2,6.21100078]
[1772032190076,0.002,1992.4,1991.8,6.21100078]
[1772032190281,0.002,1992.4,1991.9,1.25505033]
[1772032190978,0.002,1992.4,1991.8,1.25511662]
[1772032191672,0.002,1992.4,1991.6,1.25527214]
[1772032191881,0.002,1992.4,1991.8,6.21100078]
[1772032192469,0.002,1992.4,1991.6,1.25527214]
[1772032192669,0.002,1992.4,1991.5,5.02108857]
[1772032192871,0.002,1992.4,1991.6,1.989]
[1772032194183,0.002,1992.4,1991.6,8.20000078]
[1772032194754,0.002,1992.4,1991.7,1.25520911]
[1772032195798,0.002,1992.4,1991.7,7.24745186]
[1772032197982,0.002,1992.4,1991.4,7.24760089]
[1772032197983,3.53511137,1992.4,1991.4,7.24760089]
[1772032198491,9.71908061,1992.4,1991.4,7.24760089]
[1772032198707,9.71908061,1992.4,1991.4,1.25535814]
[1772032199099,6.18396924,1992.3,1991.4,1.25535814]
[1772032199471,0.002,1992.4,1991.4,1.25535814]
[1772032199472,0.002,1992.4,1991.4,7.24760089]
[1772032199671,0.002,1992.4,1991.7,5.99224275]
[1772032199872,0.002,1992.4,1991.8,1.991]
[1772032200179,0.002,1992.4,1991.8,1.9902]
[1772032200692,6.18396924,1993.4,1992.2,5.99224275]
[1772032200898,6.18396924,1993.4,1992.3,1.992]
[1772032201110,2.05,1993.6,1992.4,9.52535412]
[1772032201396,6.18396924,1993.4,1992.3,1.992]
[1772032201703,3.53311137,1993.5,1992.4,7.24701086]
[1772032201707,1.25407574,1993.5,1992.4,7.24701086]
[1772032202080,1.25407574,1993.5,1992.5,5.99224275]
[1772032202280,1.25404494,1993.6,1992.6,9.52535412]
[1772032202482,6.18396924,1993.8,1992.9,3.53311137]
[1772032202679,7.43786226,1993.8,1992.7,7.98424275]
[1772032203002,7.43786226,1993.8,1992.7,1.992]
[1772032203195,0.002,1992.9,1992.7,1.992]
[1772032203503,2.55268114,1993.9,1992.8,7.246759]
[1772032203703,1.25390068,1993.8,1992.8,7.246759]
[1772032203902,0.002,1993.0,1992.8,7.246759]
[1772032204108,7.43735337,1994.7,1993.2,5.99224275]
[1772032204402,6.18396924,1994.5,1993.3,7.98424275]
[1772032204605,6.18396924,1994.5,1993.4,5.99224275]
[1772032204800,0.002,1994.8,1993.8,3.53311137]
[1772032205102,0.002,1994.8,1993.9,5.99224275]
[1772032205307,1.25525914,1994.8,1993.9,5.99224275]
[1772032205602,1.25525914,1994.8,1994.0,1.25376128]
[1772032205777,0.002,1994.8,1994.0,1.25376128]
[1772032206402,0.002,1994.8,1993.8,1.25383195]
[1772032206608,9.71748061,1994.8,1993.8,1.25383195]
[1772032206907,3.30521093,1994.9,1993.8,1.25383195]
[1772032207211,1.25520516,1994.9,1994.0,3.53311137]
[1772032207393,0.002,1994.9,1994.0,3.53311137]
[1772032207581,0.002,1994.9,1994.1,1.25369841]
[1772032207774,0.002,1994.9,1994.1,7.24594116]
[1772032208111,0.002,1994.9,1994.2,1.991]
[1772032208605,0.002,1995.1,1994.6,3.53311137]
[1772032208777,3.29976166,1995.6,1994.6,11.51635412]
[1772032209097,2.047,1995.6,1994.9,3.53311137]
[1772032209411,1.25266763,1995.8,1994.9,3.437127]
[1772032209603,5.01241587,1995.9,1994.9,1.25319564]
[1772032209971,0.002,1995.9,1995.0,1.991]
[1772032210505,6.18516924,1995.9,1994.9,1.25319564]
[1772032210804,6.18396924,1995.8,1994.8,1.25322192]
[1772032210984,0.0012,1995.9,1994.8,1.25322192]
[1772032211409,6.18516924,1995.9,1994.8,1.25322192]
[1772032211741,7.43659976,1995.8,1994.6,1.25338413]
[1772032212304,1.25263052,1995.8,1994.8,5.99224275]
[1772032213701,0.0012,1995.9,1994.8,5.99224275]
[1772032213914,0.0012,1995.9,1994.9,1.25319564]
[1772032214204,6.18516924,1995.9,1994.6,1.25338413]
[1772032214392,6.18396924,1995.6,1994.6,1.25338413]
[1772032214601,8.22996924,1995.5,1994.6,1.25338413]
[1772032215679,8.22996924,1995.5,1994.2,5.0144099]
[1772032215680,6.18396924,1995.4,1994.2,5.0144099]
[1772032215887,7.43611365,1995.3,1994.2,5.0144099]
[1772032216191,7.43611365,1995.3,1994.2,1.25363554]
[1772032217003,6.18396924,1995.0,1993.9,1.99]
[1772032217224,2.046,1994.9,1993.9,3.24382339]
[1772032217584,9.71708061,1994.8,1993.9,0.001]
[1772032217831,1.25338413,1994.6,1993.9,0.001]
[1772032218006,6.18396924,1994.5,1993.9,0.001]
[1772032218196,8.22896924,1994.4,1993.6,0.001]
[1772032219106,3.53311137,1994.1,1993.6,0.001]
[1772032219315,6.18396924,1994.1,1993.6,0.001]
[1772032219521,9.71708061,1993.9,1992.6,5.0184427]
[1772032219742,6.18396924,1993.7,1992.5,7.24691436]
[1772032219891,3.29988704,1993.8,1992.8,9.52535412]
[1772032220213,9.48385628,1993.8,1992.7,1.25457921]
[1772032220423,6.18396924,1993.7,1992.7,1.25457921]
[1772032220715,6.18396924,1993.7,1992.6,1.25459405]
[1772032220923,6.18396924,1993.5,1992.3,1.987]
[1772032221224,6.18396924,1993.5,1992.3,3.24182924]
[1772032221714,2.046,1993.6,1992.7,3.53311137]
[1772032221880,1.25407574,1993.5,1992.8,1.25451625]
[1772032222788,3.30005879,1993.6,1992.8,1.25451625]
[1772032223190,6.18396924,1993.5,1992.4,1.25476811]
[1772032223392,9.71708061,1993.5,1992.3,1.25478913]
[1772032223613,6.18396924,1993.5,1992.3,1.25478913]
[1772032223986,6.18396924,1993.3,1992.2,5.01938594]
[1772032224186,6.18396924,1993.3,1992.2,1.25489408]
[1772032224582,6.18396924,1993.3,1991.8,1.33700308]
[1772032224809,6.18396924,1993.0,1991.7,5.99224275]
[1772032224994,6.18396924,1992.8,1991.7,1.25516006]
[1772032225196,6.18396924,1992.8,1991.5,0.001]
[1772032225197,6.18396924,1992.7,1991.5,0.001]
[1772032225415,6.18396924,1992.7,1991.5,1.25631543]
[1772032225995,1.25464217,1992.6,1991.5,0.001]
[1772032226402,7.44796403,1992.6,1991.5,0.001]
[1772032226803,7.44777516,1992.9,1991.6,9.56359446]
[1772032227028,2.046,1992.6,1991.6,6.03048309]
[1772032228125,1.25470514,1992.5,1991.5,0.001]
[1772032228301,1.25470514,1992.5,1991.6,23.621422]
[1772032228497,3.30064364,1992.6,1991.7,3.53311137]
[1772032228694,3.30064273,1992.6,1991.7,9.56359446]
[1772032228897,3.30064273,1992.6,1991.7,6.03048309]
[1772032229093,2.046,1992.6,1991.7,6.03048309]
[1772032229534,3.30067832,1992.6,1991.7,6.03048309]
[1772032229709,3.30067832,1992.6,1991.6,0.001]
[1772032229909,3.30067832,1992.6,1991.7,2.15333]
[1772032230339,3.2993713,1993.1,1992.1,3.53311137]
[1772032230502,3.2993713,1993.1,1992.1,9.53676786]
[1772032230824,2.045,1993.1,1992.2,6.00365649]
[1772032231025,2.045,1993.1,1992.4,3.53311137]
[1772032231733,7.12071858,1993.5,1992.2,1.987]
[1772032232025,5.86460418,1993.3,1992.2,1.987]
[1772032232406,1.25426449,1993.2,1992.3,1.25483109]
[1772032232615,1.2542475,1993.3,1992.3,4.78794246]
[1772032233030,1.2534475,1993.3,1992.3,4.78794246]
[1772032233420,7.11805168,1993.3,1992.2,9.24549956]
[1772032233741,7.11805168,1993.3,1992.2,3.24184307]
[1772032234440,7.11805168,1993.3,1992.2,9.24549956]
[1772032234939,1.25421123,1993.3,1992.3,6.00365649]
[1772032235154,1.25611507,1993.5,1992.5,6.00365649]
[1772032236325,1.25611507,1993.5,1992.6,1.25464217]
[1772032236518,0.002,1993.5,1992.5,7.25831219]
[1772032236909,0.002,1993.5,1992.7,6.00365649]
[1772032237112,0.002,1993.5,1992.8,2.54409]
[1772032237313,0.002,1993.5,1992.8,8.54774649]
[1772032237525,0.002,1993.5,1992.8,6.00365649]
[1772032237744,0.002,1993.5,1992.6,5.52211137]
[1772032237934,0.002,1993.5,1992.6,1.989]
[1772032237935,2.046,1993.5,1992.6,1.989]
[1772032238252,5.86460418,1993.4,1992.4,1.25472254]
[1772032238431,1.25420157,1993.3,1992.4,1.25472254]
[1772032238736,1.25418637,1993.4,1992.5,6.00365649]
[1772032240233,7.11879055,1993.4,1992.4,1.25472254]
[1772032241422,1.25418637,1993.4,1992.4,7.25837903]
[1772032242447,7.11879055,1993.4,1992.6,0.001]
[1772032242628,7.12079055,1993.4,1992.6,0.001]
[1772032242960,0.002,1993.8,1993.0,9.53676786]
[1772032243249,0.002,1993.8,1993.2,6.00365649]
[1772032243420,1.25360524,1994.3,1993.4,6.00365649]
[1772032244060,2.044,1994.5,1993.5,1.99]
[1772032244243,2.044,1994.5,1993.7,16.534685]
[1772032244244,3.29744813,1994.5,1993.7,16.534685]
[1772032244416,3.29744813,1994.5,1993.8,1.25388704]
[1772032244621,1.25344813,1994.5,1993.8,1.25388704]
[1772032244918,1.25342308,1994.6,1993.8,1.25388704]
[1772032246547,1.25342308,1994.6,1993.7,1.25390084]
[1772032246975,5.86460418,1995.2,1994.2,2.51717206]
[1772032247245,5.86460418,1995.2,1994.0,1.989]
[1772032247246,5.86460418,1995.1,1994.0,1.989]
[1772032247555,5.86460418,1995.1,1994.0,10.50982855]
[1772032247762,2.041,1995.2,1994.2,8.52082855]
[1772032248045,2.041,1995.2,1994.4,8.52082855]
[1772032248254,2.041,1995.2,1994.6,2.51717206]
[1772032248754,7.05423927,1995.6,1994.7,1.2533213]
[1772032250350,7.05423927,1995.6,1994.6,1.25335033]
[1772032250752,9.63472065,1995.3,1994.3,1.25354283]
[1772032251052,1.25294441,1995.3,1994.3,6.00365649]
[1772032251350,5.86460418,1995.2,1994.1,1.25366914]
[1772032251553,7.90460418,1995.1,1994.1,1.25366914]
[1772032251760,8.38177624,1994.7,1993.3,9.52172669]
[1772032252049,2.51717206,1994.9,1993.3,9.52172669]
[1772032252050,5.86460418,1994.4,1993.3,1.25417342]
[1772032252236,5.86460418,1994.4,1993.3,3.77134548]
[1772032252837,1.25352174,1994.4,1993.5,2.51717206]
[1772032253034,1.25352174,1994.4,1993.4,6.00365649]
[1772032254159,7.11812592,1994.4,1993.3,3.77134548]
[1772032254656,5.01340799,1994.7,1993.4,6.00365649]